bitfinex/quotes_BTCUSD_20241001
["timestamp","ask_amount","ask_price","bid_price","bid_amount"]
[1727798175155,0.015644,62748.0,62747.0,0.16037]
[1727798175377,0.025644,62748.0,62747.0,0.16137]
[1727798175628,0.025644,62748.0,62747.0,0.24277]
[1727798175868,0.011644,62748.0,62747.0,0.24177]
[1727798176116,0.011644,62748.0,62747.0,0.16037]
[1727798176592,0.025644,62748.0,62747.0,0.16137]
[1727798176828,0.025644,62748.0,62747.0,0.16037]
[1727798176829,0.011644,62748.0,62747.0,0.16037]
[1727798177067,0.025644,62748.0,62747.0,0.16137]
[1727798177562,0.025644,62748.0,62747.0,0.162192]
[1727798179620,0.025644,62748.0,62747.0,0.6058498]
[1727798179857,0.025644,62748.0,62747.0,0.6833498]
[1727798180319,0.025644,62748.0,62747.0,0.7063498]
[1727798180560,0.025644,62748.0,62747.0,0.7551383]
[1727798180786,0.025644,62748.0,62747.0,0.7083498]
[1727798181010,0.025644,62748.0,62747.0,0.7113498]
[1727798181913,0.015644,62748.0,62747.0,0.7123498]
[1727798182341,0.010644,62748.0,62747.0,0.7123498]
[1727798182819,0.001644,62748.0,62747.0,0.7113498]
[1727798183053,0.024644,62748.0,62747.0,0.7133498]
[1727798183265,0.010644,62748.0,62747.0,0.7123498]
[1727798183478,0.010644,62748.0,62747.0,0.7133498]
[1727798183479,0.024644,62748.0,62747.0,0.7133498]
[1727798186157,0.024644,62748.0,62747.0,0.162192]
[1727798186898,0.015644,62748.0,62747.0,0.161192]
[1727798187355,0.001644,62748.0,62747.0,0.260192]
[1727798187568,0.015644,62748.0,62747.0,0.261192]
[1727798187988,0.001644,62748.0,62747.0,0.260192]
[1727798188409,0.010644,62748.0,62747.0,0.261192]
[1727798188627,0.23945404,62761.0,62747.0,0.261192]
[1727798188628,0.23945404,62761.0,62760.0,0.159337]
[1727798189302,0.318629,62769.0,62759.0,0.318678]
[1727798189542,0.159325,62765.0,62761.0,0.159333]
[1727798189765,0.0765,62763.0,62762.0,0.159332]
[1727798190014,0.0765,62763.0,62760.0,0.159335]
[1727798190235,0.0765,62763.0,62761.0,0.159334]
[1727798192056,0.0765,62763.0,62762.0,0.001]
[1727798192264,0.235829,62763.0,62762.0,0.001]
[1727798192474,0.235829,62763.0,62760.0,0.160335]
[1727798192690,0.235829,62763.0,62760.0,0.001]
[1727798193122,0.235829,62763.0,62761.0,0.001]
[1727798193599,0.0765,62763.0,62761.0,0.001]
[1727798194044,0.0905,62763.0,62761.0,0.002]
[1727798194381,0.0905,62763.0,62761.0,0.001]
[1727798194382,0.10147261,62763.0,62761.0,0.001]
[1727798194622,0.27480161,62763.0,62761.0,0.002]
[1727798194841,0.27480161,62763.0,62761.0,0.001]
[1727798195078,0.11547261,62763.0,62761.0,0.001]
[1727798195309,0.3157898,62762.0,62761.0,0.001]
[1727798196183,0.3157898,62762.0,62761.0,0.002]
[1727798196885,0.1564578,62762.0,62757.0,0.159344]
[1727798197117,0.3157908,62762.0,62758.0,0.159341]
[1727798197363,0.3297908,62762.0,62761.0,0.001]
[1727798197816,0.1704578,62762.0,62761.0,0.001]
[1727798198038,0.1704578,62762.0,62756.0,0.318689]
[1727798198039,0.3157898,62762.0,62756.0,0.318689]
[1727798198248,0.3157898,62762.0,62761.0,0.001]
[1727798198249,0.3167898,62762.0,62761.0,0.001]
[1727798198517,0.3167898,62762.0,62761.0,0.002]
[1727798198518,0.3307898,62762.0,62761.0,0.002]
[1727798198743,0.159337,62760.0,62757.0,0.159344]
[1727798198959,0.159334,62761.0,62757.0,0.159344]
[1727798199193,0.159334,62761.0,62753.0,0.318705]
[1727798199194,0.28440245,62761.0,62753.0,0.318705]
[1727798199460,0.159341,62759.0,62756.0,0.159346]
[1727798200627,0.1564578,62761.0,62755.0,0.318696]
[1727798200862,0.1564578,62761.0,62757.0,0.318688]
[1727798200863,0.014,62759.0,62757.0,0.318688]
[1727798201051,0.014,62759.0,62758.0,0.159342]
[1727798201349,0.014,62759.0,62758.0,0.154342]
[1727798201795,0.014,62759.0,62757.0,0.159344]
[1727798202072,0.001,62759.0,62758.0,0.159341]
[1727798202778,0.001644,62763.0,62762.0,0.159332]
[1727798203932,0.015644,62763.0,62762.0,0.160332]
[1727798204398,0.001644,62763.0,62762.0,0.159332]
[1727798204589,0.015644,62763.0,62762.0,0.160332]
[1727798205062,0.016644,62763.0,62762.0,0.161332]
[1727798205491,0.015644,62763.0,62762.0,0.160332]
[1727798206169,0.016644,62763.0,62762.0,0.161332]
[1727798219444,0.016644,62763.0,62762.0,0.517932]
[1727798219661,0.001644,62778.0,62777.0,0.159294]
[1727798220342,0.001644,62778.0,62777.0,0.34269559]
[1727798220516,0.001644,62778.0,62777.0,0.339594]
[1727798221317,0.015644,62778.0,62777.0,0.440594]
[1727798221535,0.001644,62786.0,62785.0,0.159273]
[1727798223946,0.001644,62786.0,62785.0,0.173273]
[1727798224424,0.001644,62786.0,62785.0,0.159273]
[1727798224883,0.001644,62786.0,62785.0,0.173273]
[1727798225375,0.001644,62786.0,62785.0,0.187273]
[1727798225560,0.001644,62786.0,62785.0,0.173273]
[1727798225796,0.001644,62786.0,62785.0,0.014]
[1727798226009,0.46466287,62786.0,62785.0,0.014]
[1727798226220,0.46466287,62786.0,62780.0,0.159285]
[1727798226221,0.159275,62785.0,62780.0,0.159285]
[1727798226432,0.159279,62783.0,62779.0,0.159288]
[1727798226640,0.1564578,62783.0,62780.0,0.159284]
[1727798226851,0.1564578,62783.0,62770.0,0.515418]
[1727798227093,0.159287,62780.0,62764.0,0.31685404]
[1727798227303,0.159289,62779.0,62775.0,0.159297]
[1727798227516,0.159291,62778.0,62777.0,0.000822]
[1727798227722,0.1564578,62780.0,62777.0,0.000822]
[1727798227962,0.1564578,62780.0,62777.0,0.160115]
[1727798228166,0.1564578,62780.0,62777.0,0.000822]
[1727798228384,0.1564578,62780.0,62778.0,0.159291]
[1727798228611,0.40811134,62781.0,62777.0,0.000822]
[1727798228612,0.159291,62778.0,62777.0,0.000822]
[1727798228836,0.3157488,62778.0,62777.0,0.000822]
[1727798229074,0.3157488,62778.0,62777.0,0.001822]
[1727798229289,0.1564578,62778.0,62777.0,0.000822]
[1727798229497,0.1564578,62778.0,62777.0,0.160116]
[1727798230203,0.1564578,62778.0,62777.0,0.174116]
[1727798230615,0.1564578,62778.0,62777.0,0.160116]
[1727798230838,0.1564578,62778.0,62777.0,0.161116]
[1727798231046,0.243615,62786.0,62780.0,0.318571]
[1727798231263,0.1564578,62785.0,62784.0,0.159276]
[1727798232213,0.001644,62786.0,62785.0,0.159273]
[1727798234040,0.001644,62786.0,62785.0,0.357473]
[1727798234463,0.001644,62786.0,62785.0,0.371473]
[1727798234963,0.001644,62786.0,62785.0,0.7278308]
[1727798235236,0.001644,62786.0,62785.0,0.7188308]
[1727798235684,0.001644,62786.0,62785.0,0.7488308]
[1727798235899,0.001644,62786.0,62785.0,0.7348308]
[1727798236358,0.001644,62786.0,62785.0,0.7488308]
[1727798236854,0.001644,62786.0,62785.0,0.7348308]
[1727798237116,0.001644,62786.0,62785.0,0.7488308]
[1727798237323,0.23945404,62806.0,62805.0,0.159222]
[1727798238008,0.000822,62811.0,62810.0,0.15921]
[1727798238238,0.02577725,62811.0,62810.0,0.38307107]
[1727798238449,0.000822,62811.0,62810.0,0.38307107]
[1727798239339,0.000822,62811.0,62810.0,0.48307107]
[1727798240242,0.000822,62811.0,62810.0,0.49707107]
[1727798240911,0.000822,62811.0,62810.0,0.27321]
[1727798241780,0.000822,62811.0,62810.0,0.25921]
[1727798242002,0.000822,62811.0,62810.0,0.27321]
[1727798242225,0.000822,62811.0,62810.0,0.25921]
[1727798242647,0.000822,62811.0,62810.0,0.49707107]
[1727798242954,0.000822,62811.0,62810.0,0.48307107]
[1727798243172,0.000822,62811.0,62810.0,0.51107107]
[1727798243599,0.000822,62811.0,62810.0,0.49707107]
[1727798244028,0.000822,62811.0,62810.0,0.48307107]
[1727798244455,0.000822,62811.0,62810.0,0.25921]
[1727798244931,0.000822,62811.0,62810.0,0.18721]
[1727798245142,0.000822,62811.0,62810.0,0.27321]
[1727798245370,0.000822,62811.0,62810.0,0.28721]
[1727798245810,0.000822,62811.0,62810.0,0.17321]
[1727798246034,0.000822,62811.0,62810.0,0.18721]
[1727798246268,0.000822,62811.0,62810.0,0.17321]
[1727798246457,0.000822,62811.0,62810.0,0.014]
[1727798246711,0.160029,62811.0,62810.0,0.028]
[1727798246964,0.160029,62811.0,62810.0,0.014]
[1727798247165,0.02577426,62811.0,62801.0,0.318465]
[1727798247382,0.02577426,62811.0,62810.0,0.014]
[1727798247814,0.18498126,62811.0,62810.0,0.014]
[1727798248024,0.18498126,62811.0,62807.0,0.159217]
[1727798248426,0.159211,62810.0,62806.0,0.159219]
[1727798248573,0.159213,62809.0,62806.0,0.159219]
[1727798248771,0.18498126,62811.0,62810.0,0.014]
[1727798248976,0.18498126,62811.0,62808.0,0.159214]
[1727798249195,0.02577426,62811.0,62808.0,0.159214]
[1727798249399,0.02577426,62811.0,62809.0,0.159212]
[1727798249803,0.000822,62811.0,62810.0,0.17321]
[1727798250013,0.000822,62811.0,62810.0,0.014]
[1727798250205,0.000822,62811.0,62809.0,0.159212]
[1727798250862,0.000822,62811.0,62808.0,0.187215]
[1727798251052,0.000822,62811.0,62808.0,0.014]
[1727798251224,0.000822,62811.0,62809.0,0.159212]
[1727798251803,0.000822,62811.0,62810.0,0.014]
[1727798252350,0.3164868,62811.0,62810.0,0.014]
[1727798252549,0.45087532,62811.0,62810.0,0.014]
[1727798252737,0.45087532,62811.0,62810.0,0.028]
[1727798253433,0.45087532,62811.0,62810.0,0.014]
[1727798253434,0.3164868,62811.0,62810.0,0.014]
[1727798253638,0.318432,62808.0,62800.0,0.159235]
[1727798253842,0.159226,62804.0,62800.0,0.159235]
[1727798254053,0.15923,62802.0,62797.0,0.318481]
[1727798254243,0.1564578,62803.0,62794.0,0.318501]
[1727798254483,0.3156868,62803.0,62798.0,0.159239]
[1727798254735,0.318471,62800.0,62795.0,0.159247]
[1727798254951,0.159234,62801.0,62797.0,0.159242]
[1727798255174,0.1564578,62803.0,62800.0,0.159234]
[1727798255831,0.1564578,62803.0,62801.0,0.159232]
[1727798256264,0.1564578,62803.0,62802.0,0.15923]
[1727798256907,0.1564578,62803.0,62800.0,0.173234]
[1727798257111,0.18141381,62803.0,62800.0,0.159234]
[1727798257324,0.18141381,62803.0,62797.0,0.159243]
[1727798257543,0.318462,62802.0,62797.0,0.159243]
[1727798257755,0.23945404,62800.0,62787.0,0.318533]
[1727798258012,0.0813,62802.0,62786.0,0.318541]
[1727798258013,0.22386107,62795.0,62786.0,0.318541]
[1727798258228,0.54237807,62791.0,62786.0,0.23945404]
[1727798258461,0.159265,62789.0,62785.0,0.160093]
[1727798258676,0.159265,62789.0,62786.0,0.159269]
[1727798258925,0.1564578,62790.0,62785.0,0.000822]
[1727798259192,0.159271,62786.0,62785.0,0.000822]
[1727798259409,0.50501319,62786.0,62785.0,0.000822]
[1727798259624,0.83887426,62786.0,62785.0,0.000822]
[1727798260044,0.83687426,62786.0,62785.0,0.000822]
[1727798260483,0.83687426,62786.0,62785.0,0.014822]
[1727798260913,0.5030288,62786.0,62785.0,0.014822]
[1727798261120,0.72688987,62786.0,62785.0,0.014822]
[1727798261350,0.72188987,62786.0,62785.0,0.014822]
[1727798261584,0.4930288,62786.0,62785.0,0.028822]
[1727798261851,0.73388987,62786.0,62785.0,0.028822]
[1727798262079,0.88833665,62786.0,62785.0,0.014822]
[1727798262739,0.88833665,62786.0,62785.0,0.028822]
[1727798262945,0.88833665,62786.0,62785.0,0.014822]
[1727798263428,0.88833665,62786.0,62785.0,0.028822]
[1727798263651,0.88833665,62786.0,62785.0,0.000822]
[1727798263869,0.5030288,62786.0,62785.0,0.014822]
[1727798264080,0.3930288,62786.0,62785.0,0.028822]
[1727798264537,0.3930288,62786.0,62785.0,0.014822]
[1727798264949,0.3930288,62786.0,62785.0,0.028822]
[1727798265361,0.3930288,62786.0,62785.0,0.000822]
[1727798265582,0.3930288,62786.0,62785.0,0.014822]
[1727798265796,0.3930288,62786.0,62785.0,0.028822]
[1727798266084,0.001644,62826.0,62787.0,0.95561944]
[1727798266328,0.001644,62826.0,62825.0,0.164172]
[1727798266530,0.001644,62826.0,62825.0,0.40003307]
[1727798267441,0.001644,62826.0,62825.0,0.50277119]
[1727798267646,0.001644,62826.0,62825.0,0.61375541]
[1727798267854,0.001644,62826.0,62825.0,0.73214168]
[1727798268534,0.001644,62826.0,62825.0,0.62940356]
[1727798268760,0.001644,62826.0,62825.0,0.51101729]
[1727798268969,0.001644,62826.0,62825.0,0.53801729]
[1727798269640,0.001644,62826.0,62825.0,0.61062463]
[1727798270327,0.001644,62826.0,62825.0,0.59762463]
[1727798270528,0.001644,62826.0,62825.0,0.56962463]
[1727798270753,0.001644,62826.0,62825.0,0.58262463]
[1727798271236,0.001644,62826.0,62825.0,0.62401729]
[1727798271689,0.001644,62826.0,62825.0,0.62201729]
[1727798271904,0.001644,62826.0,62825.0,0.63801729]
[1727798273675,0.001644,62826.0,62825.0,0.84452093]
[1727798275245,0.001644,62826.0,62825.0,0.79447509]
[1727798275871,0.001644,62826.0,62825.0,0.83874843]
[1727798277390,0.23875656,62839.0,62829.0,0.012]
[1727798277598,0.23875656,62839.0,62829.0,0.4276198]
[1727798277808,0.23875656,62839.0,62829.0,0.47189314]
[1727798278429,0.23875656,62839.0,62829.0,0.4276198]
[1727798279129,0.23875656,62839.0,62829.0,0.4386198]
[1727798279336,0.23875656,62839.0,62829.0,0.48289314]
[1727798279558,0.23875656,62839.0,62829.0,0.028]
[1727798279796,0.23875656,62839.0,62829.0,0.037]
[1727798280026,0.23875656,62839.0,62829.0,0.296162]
[1727798280247,0.23875656,62839.0,62829.0,0.287162]
[1727798280464,0.23875656,62839.0,62829.0,0.276162]
[1727798280684,0.23875656,62839.0,62829.0,0.287162]
[1727798280907,0.23875656,62839.0,62829.0,0.128]
[1727798281339,0.23875656,62839.0,62829.0,0.196162]
[1727798281600,0.23875656,62839.0,62829.0,0.4526198]
[1727798282035,0.23875656,62839.0,62829.0,0.4416198]
[1727798282539,0.23875656,62839.0,62829.0,0.4526198]
[1727798283886,0.23875656,62839.0,62829.0,0.137]
[1727798284113,0.23875656,62839.0,62829.0,0.196162]
[1727798284314,0.23875656,62839.0,62829.0,0.137]
[1727798284797,0.23875656,62839.0,62829.0,0.128]
[1727798285020,0.23875656,62839.0,62829.0,0.287162]
[1727798285277,0.23875656,62839.0,62829.0,0.285162]
[1727798285481,0.23875656,62839.0,62829.0,0.296162]
[1727798285696,0.23875656,62839.0,62829.0,0.294162]
[1727798285948,0.23875656,62839.0,62829.0,0.2970112]
[1727798286164,0.23875656,62839.0,62829.0,0.1378492]
[1727798286473,0.23875656,62839.0,62829.0,0.017]
[1727798286660,0.23875656,62839.0,62829.0,0.028]
[1727798286877,0.23875656,62839.0,62829.0,0.026]
[1727798287314,0.160788,62836.0,62829.0,0.017]
[1727798287540,0.160788,62836.0,62829.0,0.028]
[1727798287541,0.02494211,62835.0,62829.0,0.028]
[1727798287757,0.18409011,62835.0,62829.0,0.037]
[1727798287974,0.02494211,62835.0,62829.0,0.037]
[1727798288209,0.18408911,62835.0,62829.0,0.037]
[1727798288478,0.02494211,62835.0,62829.0,0.037]
[1727798289375,0.02494211,62835.0,62829.0,0.026]
[1727798289587,0.02494211,62835.0,62829.0,0.02811862]
[1727798289809,0.001644,62836.0,62829.0,0.04011862]
[1727798290912,0.001644,62836.0,62829.0,0.19928062]
[1727798291122,0.001644,62836.0,62829.0,0.297162]
[1727798292445,0.001644,62836.0,62829.0,0.30034478]
[1727798292668,0.001644,62836.0,62829.0,0.297162]
[1727798292917,0.001644,62836.0,62829.0,0.138]
[1727798293132,0.001644,62836.0,62829.0,0.029]
[1727798293560,0.001644,62836.0,62829.0,0.038]
[1727798293782,0.39954456,62836.0,62829.0,0.038]
[1727798293992,0.39954456,62836.0,62829.0,0.029]
[1727798293993,0.24040056,62836.0,62829.0,0.029]
[1727798294894,0.24040056,62836.0,62829.0,0.038]
[1727798294895,0.159147,62835.0,62829.0,0.038]
[1727798295120,0.39954556,62836.0,62829.0,0.038]
[1727798295350,0.159147,62835.0,62829.0,0.038]
[1727798295583,0.24040056,62836.0,62829.0,0.038]
[1727798295800,0.001644,62836.0,62829.0,0.36127656]
[1727798296243,0.001644,62836.0,62829.0,0.52043856]
[1727798298042,0.001644,62836.0,62829.0,0.297162]
[1727798298470,0.001644,62836.0,62829.0,0.038]
[1727798298889,0.24040056,62836.0,62829.0,0.038]
[1727798299346,0.24040056,62836.0,62829.0,0.297162]
[1727798299582,0.55869156,62836.0,62829.0,0.138]
[1727798300033,0.159147,62835.0,62829.0,0.138]
[1727798300243,0.24040056,62836.0,62829.0,0.138]
[1727798300501,0.39954556,62836.0,62829.0,0.038]
[1727798300726,0.001644,62836.0,62829.0,0.297162]
[1727798301194,0.001644,62836.0,62829.0,0.67689636]
[1727798301386,0.001644,62836.0,62829.0,0.75469636]
[1727798302110,0.001644,62836.0,62829.0,0.689281]
[1727798302994,0.001644,62836.0,62829.0,0.46600444]
[1727798303862,0.001644,62836.0,62829.0,0.45700444]
[1727798304091,0.001644,62836.0,62829.0,0.45400444]
[1727798304540,0.001644,62836.0,62829.0,0.46600444]
[1727798304765,0.001644,62836.0,62829.0,0.45700444]
[1727798305652,0.001644,62836.0,62829.0,0.44500444]
[1727798306089,0.001644,62836.0,62829.0,0.45400444]
[1727798306539,0.001644,62836.0,62829.0,0.689281]
[1727798306753,0.001644,62836.0,62829.0,0.668281]
[1727798306995,0.001644,62836.0,62829.0,0.677281]
[1727798307648,0.001644,62836.0,62829.0,0.45400444]
[1727798307867,0.001644,62836.0,62829.0,0.46600444]
[1727798308597,0.001644,62836.0,62829.0,0.689281]
[1727798308817,0.001644,62836.0,62829.0,0.30954664]
[1727798309235,0.001644,62836.0,62829.0,0.285162]
[1727798309492,0.001644,62836.0,62829.0,0.288162]
[1727798309706,0.001644,62836.0,62829.0,0.297162]
[1727798309946,0.001644,62836.0,62829.0,0.52043856]
[1727798310369,0.001644,62836.0,62829.0,0.50843856]
[1727798310795,0.001644,62836.0,62829.0,0.52043856]
[1727798311010,0.001644,62836.0,62829.0,0.49943856]
[1727798311233,0.001644,62836.0,62829.0,0.50843856]
[1727798311480,0.001644,62836.0,62829.0,0.72964582]
[1727798311681,0.001644,62836.0,62829.0,0.82309494]
[1727798311923,0.001644,62836.0,62829.0,0.59981838]
[1727798312160,0.001644,62836.0,62829.0,0.285162]
[1727798312161,0.0783,62832.0,62829.0,0.285162]
[1727798312604,0.0783,62832.0,62829.0,0.34389909]
[1727798312823,0.0783,62832.0,62829.0,0.285162]
[1727798313045,0.0783,62832.0,62829.0,0.276162]
[1727798313297,0.0783,62832.0,62829.0,0.288162]
[1727798313501,0.0783,62832.0,62829.0,0.285162]
[1727798313913,0.0783,62832.0,62829.0,0.176162]
[1727798314121,0.0783,62832.0,62829.0,0.185162]
[1727798314324,0.0783,62832.0,62829.0,0.197162]
[1727798314761,0.001644,62836.0,62829.0,0.4536198]
[1727798314964,0.001644,62836.0,62829.0,0.7236594]
[1727798315192,0.001644,62836.0,62829.0,0.96891727]
[1727798315414,0.001644,62836.0,62829.0,0.8988187]
[1727798315849,0.001644,62836.0,62829.0,0.67554214]
[1727798316064,0.001644,62836.0,62829.0,0.51008434]
[1727798316273,0.001644,62836.0,62829.0,0.58918884]
[1727798316490,0.001644,62836.0,62829.0,0.36731145]
[1727798316874,0.001644,62836.0,62829.0,0.57715913]
[1727798317144,0.001644,62836.0,62829.0,0.57717979]
[1727798317356,0.001644,62836.0,62829.0,0.51900968]
[1727798317559,0.001644,62836.0,62829.0,0.57718282]
[1727798317999,0.001644,62836.0,62829.0,0.58918282]
[1727798318412,0.001644,62836.0,62829.0,0.58916648]
[1727798318631,0.001644,62836.0,62829.0,0.36733514]
[1727798319043,0.001644,62836.0,62829.0,0.58920367]
[1727798319477,0.001644,62836.0,62829.0,0.34396391]
[1727798320366,0.001644,62836.0,62829.0,0.297162]
[1727798320593,0.001644,62836.0,62829.0,0.026]
[1727798320594,0.44418076,62830.0,62829.0,0.026]
[1727798320794,0.58325756,62830.0,62829.0,0.026]
[1727798321039,0.359981,62830.0,62829.0,0.026]
[1727798321303,0.42409856,62830.0,62829.0,0.026]
[1727798321940,0.42409856,62830.0,62829.0,0.014]
[1727798322367,0.42409856,62830.0,62829.0,0.185162]
[1727798322580,0.42409856,62830.0,62829.0,0.176162]
[1727798322991,0.42409856,62830.0,62829.0,0.026]
[1727798323417,0.58325756,62830.0,62829.0,0.026]
[1727798324762,0.42409856,62830.0,62829.0,0.026]
[1727798324984,0.58325756,62830.0,62829.0,0.026]
[1727798325955,0.58325756,62830.0,62829.0,0.028]
[1727798326404,0.58325756,62830.0,62829.0,0.026]
[1727798328276,0.60820304,62830.0,62829.0,0.026]
[1727798332583,0.58325756,62830.0,62829.0,0.026]
[1727798333223,0.58325756,62830.0,62829.0,0.028]
[1727798333435,0.58325756,62830.0,62829.0,0.026]
[1727798333928,0.200822,62830.0,62829.0,0.026]
[1727798334179,0.200822,62830.0,62829.0,0.195162]
[1727798335107,0.200822,62830.0,62829.0,0.183162]
[1727798335357,0.200822,62830.0,62829.0,0.185162]
[1727798335590,0.200822,62830.0,62829.0,0.197162]
[1727798335820,0.200822,62830.0,62829.0,0.188162]
[1727798336050,0.200822,62830.0,62829.0,0.20970366]
[1727798336752,0.200822,62830.0,62829.0,0.197162]
[1727798339899,0.200822,62830.0,62829.0,0.188162]
[1727798340125,0.200822,62830.0,62829.0,0.197162]
[1727798340384,0.200822,62830.0,62829.0,0.036]
[1727798340616,0.359981,62830.0,62829.0,0.036]
[1727798341311,0.359981,62830.0,62829.0,0.014]
[1727798341552,0.359981,62830.0,62829.0,0.024]
[1727798341774,0.359981,62830.0,62829.0,0.036]
[1727798344320,0.437981,62830.0,62829.0,0.026]
[1727798344807,0.59442778,62830.0,62829.0,0.026]
[1727798345040,0.2803,62829.0,62808.0,0.005]
[1727798345266,0.2803,62829.0,62802.0,0.23875656]
[1727798345267,0.0309,62815.0,62802.0,0.23875656]
[1727798345740,0.159228,62803.0,62802.0,0.23875656]
[1727798345743,0.38250456,62803.0,62802.0,0.23875656]
[1727798345995,0.38250456,62803.0,62793.0,0.01]
[1727798345996,0.159245,62796.0,62793.0,0.01]
[1727798346490,0.31848,62799.0,62793.0,0.01]
[1727798346709,0.159249,62795.0,62793.0,0.01]
[1727798346931,0.159249,62795.0,62785.0,0.319367]
[1727798346932,0.02495807,62803.0,62800.0,0.01]
[1727798347151,0.23875656,62801.0,62800.0,0.01]
[1727798347364,0.18418607,62803.0,62800.0,0.01]
[1727798347365,0.18418707,62803.0,62800.0,0.01]
[1727798347577,0.02495807,62803.0,62800.0,0.01]
[1727798347809,0.159231,62802.0,62800.0,0.01]
[1727798348273,0.02495807,62803.0,62802.0,0.16923]
[1727798348532,0.02495807,62803.0,62802.0,0.01]
[1727798348752,0.02595807,62803.0,62802.0,0.024]
[1727798348970,0.02495807,62803.0,62802.0,0.01]
[1727798349188,0.02495807,62803.0,62802.0,0.16923]
[1727798349408,0.02495807,62803.0,62802.0,0.01]
[1727798349621,0.02595807,62803.0,62802.0,0.0207]
[1727798349840,0.001,62803.0,62802.0,0.0201]
[1727798350087,0.23875656,62809.0,62808.0,0.0091]
[1727798350306,0.23875656,62809.0,62808.0,0.009]
[1727798350523,0.0808,62812.0,62808.0,0.0087]
[1727798350746,0.240006,62812.0,62808.0,0.0084]
[1727798351033,0.34204951,62812.0,62808.0,0.0083]
[1727798351273,0.0808,62812.0,62808.0,0.0082]
[1727798351487,0.240006,62812.0,62808.0,0.0077]
[1727798351712,0.0808,62812.0,62808.0,0.0073]
[1727798351947,0.0782,62819.0,62808.0,0.0072]
[1727798352197,0.23875656,62816.0,62814.0,0.007]
[1727798352438,0.0782,62819.0,62814.0,0.0067]
[1727798352667,0.237388,62819.0,62814.0,0.0063]
[1727798352931,0.0782,62819.0,62814.0,0.0062]
[1727798353404,0.0782,62819.0,62814.0,0.0059]
[1727798353652,0.001,62816.0,62814.0,0.0334]
[1727798353902,0.001,62816.0,62814.0,0.0332]
[1727798354142,0.160195,62816.0,62814.0,0.0192]
[1727798354389,0.159197,62815.0,62814.0,0.0331]
[1727798354630,0.159195,62816.0,62814.0,0.005]
[1727798355369,0.0874142,62816.0,62814.0,0.005]
[1727798355611,0.159193,62817.0,62814.0,0.005]
[1727798355831,0.1564578,62817.0,62814.0,0.005]
[1727798356067,0.159197,62815.0,62814.0,0.019]
[1727798356307,0.159197,62815.0,62814.0,0.033]
[1727798356550,0.159197,62815.0,62814.0,0.019]
[1727798356790,0.159197,62815.0,62814.0,0.005]
[1727798357031,0.1564578,62817.0,62814.0,0.019]
[1727798357289,0.3166508,62817.0,62814.0,0.033]
[1727798357542,0.001,62817.0,62814.0,0.019]
[1727798357795,0.23875656,62820.0,62814.0,0.005]
[1727798358039,0.23875656,62820.0,62814.0,0.192199]
[1727798358040,0.02495113,62817.0,62814.0,0.192199]
[1727798358256,0.001,62815.0,62814.0,0.192199]
[1727798358502,0.001,62815.0,62814.0,0.033]
[1727798358747,0.04865565,62815.0,62814.0,0.033]
[1727798358987,0.001,62815.0,62814.0,0.1942]
[1727798359226,0.02495113,62817.0,62814.0,0.021]
[1727798359466,0.02495113,62817.0,62816.0,0.161195]
[1727798359703,0.02595113,62817.0,62816.0,0.161195]
[1727798359940,0.001,62817.0,62816.0,0.166195]
[1727798360187,0.001,62817.0,62816.0,0.16718918]
[1727798360421,0.0751,62826.0,62816.0,0.16718918]
[1727798360422,0.23875656,62822.0,62821.0,0.164182]
[1727798360643,0.220822,62830.0,62829.0,0.159162]
[1727798360911,0.220822,62830.0,62828.0,0.002]
[1727798361123,0.220822,62830.0,62829.0,0.159162]
[1727798361586,0.170822,62830.0,62828.0,0.002]
[1727798361807,0.170822,62830.0,62828.0,0.161164]
[1727798362068,0.170822,62830.0,62826.0,0.318339]
[1727798362069,0.170822,62830.0,62829.0,0.161162]
[1727798362319,0.329981,62830.0,62829.0,0.002]
[1727798362550,0.329981,62830.0,62822.0,0.641715]
[1727798362551,0.170822,62830.0,62826.0,0.318339]
[1727798362777,0.170822,62830.0,62823.0,0.318353]
[1727798362778,0.30058776,62830.0,62823.0,0.318353]
[1727798362991,0.45974776,62830.0,62826.0,0.159168]
[1727798363461,0.159163,62829.0,62826.0,0.159169]
[1727798363710,0.11779768,62829.0,62826.0,0.159169]
[1727798364167,0.22327656,62827.0,62823.0,0.011]
[1727798364407,0.159174,62825.0,62822.0,0.005]
[1727798364639,0.159175,62824.0,62822.0,0.005]
[1727798364870,0.27673284,62824.0,62822.0,0.005]
[1727798365088,0.11755784,62824.0,62822.0,0.164179]
[1727798365307,0.159177,62823.0,62822.0,0.005]
[1727798365550,0.159177,62823.0,62818.0,0.159188]
[1727798365551,0.0757,62821.0,62818.0,0.005]
[1727798365800,0.159197,62815.0,62814.0,0.000822]
[1727798366052,0.24492724,62815.0,62814.0,0.000822]
[1727798366282,0.24492724,62815.0,62814.0,0.005822]
[1727798367167,0.24492724,62815.0,62814.0,0.000822]
[1727798367168,0.40138504,62815.0,62814.0,0.000822]
[1727798367416,0.6246616,62815.0,62814.0,0.028822]
[1727798367875,0.6246616,62815.0,62814.0,0.014822]
[1727798368087,0.6246616,62815.0,62814.0,0.028822]
[1727798368304,0.6246616,62815.0,62814.0,0.014822]
[1727798368520,0.7068616,62815.0,62814.0,0.028822]
[1727798369453,0.7068616,62815.0,62814.0,0.014822]
[1727798369952,0.7068616,62815.0,62814.0,0.028822]
[1727798371075,0.8982616,62815.0,62814.0,0.014822]
[1727798371326,0.9982616,62815.0,62814.0,0.014822]
[1727798371541,0.9982616,62815.0,62799.0,0.23875656]
[1727798371542,0.159235,62800.0,62799.0,0.23875656]
[1727798371774,0.61996936,62800.0,62799.0,0.23875656]
[1727798371997,0.61996936,62800.0,62797.0,0.000822]
[1727798371998,0.15924,62798.0,62797.0,0.000822]